[Event "*** Titled Tuesday Blitz"]
[Site "Chess.com"]
[Date "2021.03.09"]
[Round "2"]
[White "Gerasimenyuk_Miha"]
[Black "Korchmar_Vasiliy"]
[Result "1-0"]
[WhiteElo "2436"]
[BlackElo "2640"]
[TimeControl "180+1"]
[EndTime "10:19:51 PST"]
[Termination "Gerasimenyuk_Miha won on time"]

1. d4 {[%clk 0:02:55.5]} 1... Nf6 {[%clk 0:02:59.8]} 2. Nf3 {[%clk 0:02:55.8]}
2... d5 {[%clk 0:02:59.9]} 3. c3 {[%clk 0:02:56.3]} 3... Bf5 {[%clk 0:02:58.3]}
4. Bg5 {[%clk 0:02:56.7]} 4... e6 {[%clk 0:02:51.2]} 5. e3 {[%clk 0:02:52]} 5...
Be7 {[%clk 0:02:50.6]} 6. Bd3 {[%clk 0:02:50.9]} 6... Bg4 {[%clk 0:02:31.4]} 7.
Nbd2 {[%clk 0:02:50.6]} 7... O-O {[%clk 0:02:30.2]} 8. Qc2 {[%clk 0:02:50]} 8...
c5 {[%clk 0:02:27.3]} 9. Bxf6 {[%clk 0:02:48.4]} 9... Bxf6 {[%clk 0:02:28.2]}
10. Bxh7+ {[%clk 0:02:48.6]} 10... Kh8 {[%clk 0:02:28.8]} 11. Bd3 {[%clk
0:02:37.4]} 11... Nc6 {[%clk 0:02:29.1]} 12. h3 {[%clk 0:02:37.2]} 12... Bxf3
{[%clk 0:02:23.2]} 13. Nxf3 {[%clk 0:02:34.6]} 13... Rc8 {[%clk 0:02:22.5]} 14.
Qe2 {[%clk 0:02:34.3]} 14... g6 {[%clk 0:02:09.1]} 15. O-O {[%clk 0:02:33.3]}
15... Kg7 {[%clk 0:02:09.4]} 16. Rad1 {[%clk 0:02:29.6]} 16... Qa5 {[%clk
0:02:05.8]} 17. a3 {[%clk 0:02:26.5]} 17... Rfe8 {[%clk 0:02:05.2]} 18. dxc5
{[%clk 0:02:23.2]} 18... Qxc5 {[%clk 0:02:04.8]} 19. e4 {[%clk 0:02:23.4]} 19...
dxe4 {[%clk 0:01:58.3]} 20. Bxe4 {[%clk 0:02:22.3]} 20... Rcd8 {[%clk
0:01:35.5]} 21. Rxd8 {[%clk 0:02:18.2]} 21... Rxd8 {[%clk 0:01:36.4]} 22. Rd1
{[%clk 0:02:16.4]} 22... Rxd1+ {[%clk 0:01:36.6]} 23. Qxd1 {[%clk 0:02:09.5]}
23... Ne7 {[%clk 0:01:34.2]} 24. Qd7 {[%clk 0:02:02.6]} 24... b6 {[%clk
0:01:20.9]} 25. Qxa7 {[%clk 0:01:56]} 25... Qc4 {[%clk 0:01:21.4]} 26. Qb7
{[%clk 0:01:51.6]} 26... Qe2 {[%clk 0:01:15.6]} 27. b4 {[%clk 0:01:28.2]} 27...
Bxc3 {[%clk 0:01:06.9]} 28. Qxe7 {[%clk 0:01:24]} 28... Qxe4 {[%clk 0:01:06.8]}
29. Qxf7+ {[%clk 0:01:10.9]} 29... Kh6 {[%clk 0:01:06.9]} 30. Qf8+ {[%clk
0:01:02.8]} 30... Bg7 {[%clk 0:01:06.3]} 31. Qe7 {[%clk 0:00:54.3]} 31... Qb1+
{[%clk 0:01:01.5]} 32. Kh2 {[%clk 0:00:52]} 32... Qf5 {[%clk 0:00:53.6]} 33.
Qh4+ {[%clk 0:00:50.3]} 33... Qh5 {[%clk 0:00:54.2]} 34. Qxh5+ {[%clk
0:00:49.7]} 34... gxh5 {[%clk 0:00:55.1]} 35. a4 {[%clk 0:00:49.5]} 35... Bc3
{[%clk 0:00:53.8]} 36. b5 {[%clk 0:00:31.5]} 36... Kg6 {[%clk 0:00:54.4]} 37. g4
{[%clk 0:00:31.1]} 37... hxg4 {[%clk 0:00:54]} 38. hxg4 {[%clk 0:00:31.5]} 38...
Kf6 {[%clk 0:00:52.5]} 39. Kg3 {[%clk 0:00:31.8]} 39... e5 {[%clk 0:00:52.1]}
40. Kh4 {[%clk 0:00:29.5]} 40... e4 {[%clk 0:00:47.3]} 41. g5+ {[%clk
0:00:27.8]} 41... Kf5 {[%clk 0:00:45.3]} 42. Ng1 {[%clk 0:00:22.8]} 42... Bd4
{[%clk 0:00:08.1]} 43. Kh5 {[%clk 0:00:19.2]} 43... Bxf2 {[%clk 0:00:04.6]} 44.
g6 {[%clk 0:00:19.4]} 44... Bd4 {[%clk 0:00:04.3]} 45. Ne2 {[%clk 0:00:19.5]}
45... Bg7 {[%clk 0:00:03.1]} 46. a5 {[%clk 0:00:19.9]} 46... bxa5 {[%clk
0:00:01.6]} 47. b6 {[%clk 0:00:20.4]} 47... Be5 {[%clk 0:00:01.6]} 48. b7 {[%clk
0:00:18.5]} 48... Kf6 {[%clk 0:00:02]} 49. Kh6 {[%clk 0:00:18.2]} 49... Ke7
{[%clk 0:00:01.4]} 50. g7 {[%clk 0:00:17.6]} 50... Bxg7+ {[%clk 0:00:01.4]} 51.
Kxg7 {[%clk 0:00:18.1]} 1-0

[Event "*** Titled Tuesday Blitz"]
[Site "Chess.com"]
[Date "2021.03.09"]
[Round "2"]
[White "DanielDardha2005"]
[Black "Lion-Al-Messi"]
[Result "1-0"]
[WhiteElo "2679"]
[BlackElo "2474"]
[TimeControl "180+1"]
[EndTime "10:19:52 PST"]
[Termination "DanielDardha2005 won on time"]

1. c4 {[%clk 0:03:00.9]} 1... c5 {[%clk 0:02:57.9]} 2. g3 {[%clk 0:02:59.1]}
2... Nc6 {[%clk 0:02:57.9]} 3. Bg2 {[%clk 0:02:59.7]} 3... g6 {[%clk 0:02:58.4]}
4. Nc3 {[%clk 0:02:59.8]} 4... Bg7 {[%clk 0:02:59]} 5. b3 {[%clk 0:02:59.9]}
5... Nh6 {[%clk 0:02:57.2]} 6. Bb2 {[%clk 0:02:56.2]} 6... O-O {[%clk
0:02:57.1]} 7. d3 {[%clk 0:02:53]} 7... a6 {[%clk 0:02:56.1]} 8. Qd2 {[%clk
0:02:50.2]} 8... Nf5 {[%clk 0:02:55.3]} 9. e3 {[%clk 0:02:45.1]} 9... Rb8 {[%clk
0:02:54]} 10. Nge2 {[%clk 0:02:44.5]} 10... b5 {[%clk 0:02:52.6]} 11. Bxc6
{[%clk 0:02:44.5]} 11... dxc6 {[%clk 0:02:51.7]} 12. Rd1 {[%clk 0:02:38.7]}
12... Qa5 {[%clk 0:02:48.6]} 13. O-O {[%clk 0:02:31.2]} 13... Rd8 {[%clk
0:02:45.6]} 14. Ne4 {[%clk 0:02:15.3]} 14... Qxa2 {[%clk 0:01:47.6]} 15. Bxg7
{[%clk 0:02:01.7]} 15... Qxd2 {[%clk 0:01:47.1]} 16. Rxd2 {[%clk 0:02:02.6]}
16... Kxg7 {[%clk 0:01:46.6]} 17. Nxc5 {[%clk 0:02:02.3]} 17... Nd6 {[%clk
0:01:34.8]} 18. Ra2 {[%clk 0:02:00.7]} 18... Rb6 {[%clk 0:01:24]} 19. Rfa1
{[%clk 0:01:55.8]} 19... Nb7 {[%clk 0:01:12.5]} 20. Nxb7 {[%clk 0:01:31.7]}
20... Rxb7 {[%clk 0:00:56.1]} 21. d4 {[%clk 0:01:24.6]} 21... Rbd7 {[%clk
0:00:54.3]} 22. Nc3 {[%clk 0:01:20.9]} 22... e5 {[%clk 0:00:37.4]} 23. dxe5
{[%clk 0:01:11.7]} 23... Rd3 {[%clk 0:00:37]} 24. Rc1 {[%clk 0:01:07.1]} 24...
Bh3 {[%clk 0:00:35.8]} 25. Raa1 {[%clk 0:00:51.3]} 25... b4 {[%clk 0:00:31.8]}
26. Ne2 {[%clk 0:00:45]} 26... Rxb3 {[%clk 0:00:30.4]} 27. Nd4 {[%clk
0:00:41.5]} 27... Rc3 {[%clk 0:00:30.5]} 28. Nxc6 {[%clk 0:00:37]} 28... Rd2
{[%clk 0:00:18.5]} 29. Nxb4 {[%clk 0:00:33.5]} 29... Rb3 {[%clk 0:00:14.7]} 30.
Ra2 {[%clk 0:00:21.4]} 30... Rc3 {[%clk 0:00:08.2]} 31. Re1 {[%clk 0:00:10.3]}
31... Rxa2 {[%clk 0:00:08.3]} 32. Nxa2 {[%clk 0:00:09.9]} 32... Rxc4 {[%clk
0:00:08.8]} 33. Rc1 {[%clk 0:00:04.5]} 33... Ra4 {[%clk 0:00:05.2]} 34. Nc3
{[%clk 0:00:04.4]} 34... Rc4 {[%clk 0:00:05.3]} 35. f3 {[%clk 0:00:04.7]} 35...
a5 {[%clk 0:00:04.8]} 36. Kf2 {[%clk 0:00:04.9]} 36... Be6 {[%clk 0:00:04.5]}
37. e4 {[%clk 0:00:04.9]} 37... a4 {[%clk 0:00:04.5]} 38. Ke3 {[%clk 0:00:05.5]}
38... Rb4 {[%clk 0:00:03.7]} 39. Kd3 {[%clk 0:00:05.2]} 39... a3 {[%clk
0:00:04.2]} 40. Ra1 {[%clk 0:00:04.7]} 40... Rb2 {[%clk 0:00:04.6]} 41. Rxa3
{[%clk 0:00:04.1]} 41... Rxh2 {[%clk 0:00:04.8]} 42. Ra7 {[%clk 0:00:04.2]}
42... Rg2 {[%clk 0:00:04.5]} 43. g4 {[%clk 0:00:04.3]} 43... Rg3 {[%clk
0:00:04.6]} 44. Ke2 {[%clk 0:00:03.6]} 44... Rg2+ {[%clk 0:00:05]} 45. Ke3
{[%clk 0:00:03.5]} 45... h5 {[%clk 0:00:04.6]} 46. Ne2 {[%clk 0:00:04]} 46...
hxg4 {[%clk 0:00:04.4]} 47. Nf4 {[%clk 0:00:04.6]} 47... Rg3 {[%clk 0:00:04.2]}
48. Nxe6+ {[%clk 0:00:04.7]} 48... Kg8 {[%clk 0:00:04.1]} 49. Ra8+ {[%clk
0:00:04.6]} 49... Kh7 {[%clk 0:00:04.5]} 50. Ng5+ {[%clk 0:00:05.5]} 50... Kh6
{[%clk 0:00:04.6]} 51. Kf4 {[%clk 0:00:06.4]} 1-0

[Event "*** Titled Tuesday Blitz"]
[Site "Chess.com"]
[Date "2021.03.09"]
[Round "2"]
[White "vlad_Sid"]
[Black "ChristopherYoo"]
[Result "0-1"]
[WhiteElo "2571"]
[BlackElo "2927"]
[TimeControl "180+1"]
[EndTime "10:19:55 PST"]
[Termination "ChristopherYoo won on time"]

1. c4 {[%clk 0:03:00.9]} 1... e6 {[%clk 0:02:54.4]} 2. g3 {[%clk 0:03:00.9]}
2... d5 {[%clk 0:02:53.9]} 3. Bg2 {[%clk 0:03:01.1]} 3... Nf6 {[%clk 0:02:54.2]}
4. Nf3 {[%clk 0:03:00.9]} 4... Be7 {[%clk 0:02:54.4]} 5. O-O {[%clk 0:03:01.1]}
5... O-O {[%clk 0:02:54.6]} 6. b3 {[%clk 0:03:01.1]} 6... b6 {[%clk 0:02:54.8]}
7. Bb2 {[%clk 0:03:01.3]} 7... Bb7 {[%clk 0:02:54.7]} 8. e3 {[%clk 0:03:01]}
8... Nbd7 {[%clk 0:02:54.4]} 9. Qc2 {[%clk 0:02:59.9]} 9... c5 {[%clk
0:02:53.6]} 10. cxd5 {[%clk 0:02:51.7]} 10... Nxd5 {[%clk 0:02:48.7]} 11. a3
{[%clk 0:02:51]} 11... Rc8 {[%clk 0:02:48.1]} 12. Nc3 {[%clk 0:02:38.4]} 12...
Nxc3 {[%clk 0:02:37.7]} 13. Bxc3 {[%clk 0:02:39.3]} 13... Bf6 {[%clk 0:02:37.4]}
14. Rfd1 {[%clk 0:02:34.4]} 14... Qe7 {[%clk 0:02:34.4]} 15. Rac1 {[%clk
0:02:30]} 15... Rfd8 {[%clk 0:02:33.2]} 16. Qb2 {[%clk 0:02:27.8]} 16... Bxc3
{[%clk 0:02:31.4]} 17. Rxc3 {[%clk 0:02:23.1]} 17... Nf6 {[%clk 0:02:30.9]} 18.
d4 {[%clk 0:02:15.9]} 18... Be4 {[%clk 0:01:58.4]} 19. Ne5 {[%clk 0:02:02.2]}
19... Bxg2 {[%clk 0:01:39.1]} 20. Kxg2 {[%clk 0:02:03.1]} 20... Qb7+ {[%clk
0:01:37.6]} 21. f3 {[%clk 0:01:38.1]} 21... Nd5 {[%clk 0:01:08]} 22. Rcd3 {[%clk
0:01:36.8]} 22... f6 {[%clk 0:01:07.8]} 23. Ng4 {[%clk 0:01:14]} 23... h5 {[%clk
0:00:58]} 24. Nf2 {[%clk 0:01:13.2]} 24... c4 {[%clk 0:00:51.7]} 25. bxc4 {[%clk
0:01:10.2]} 25... Rxc4 {[%clk 0:00:52.6]} 26. e4 {[%clk 0:01:03.6]} 26... Ne7
{[%clk 0:00:49.1]} 27. Qb3 {[%clk 0:00:55.3]} 27... Qc6 {[%clk 0:00:45.2]} 28.
R1d2 {[%clk 0:00:38]} 28... h4 {[%clk 0:00:44.1]} 29. Ng4 {[%clk 0:00:26.2]}
29... hxg3 {[%clk 0:00:42.7]} 30. hxg3 {[%clk 0:00:27.1]} 30... Rc1 {[%clk
0:00:22]} 31. Ne3 {[%clk 0:00:26.2]} 31... Rc8 {[%clk 0:00:17.6]} 32. d5 {[%clk
0:00:25.9]} 32... exd5 {[%clk 0:00:17.5]} 33. Nxd5 {[%clk 0:00:22.6]} 33... Nxd5
{[%clk 0:00:17.4]} 34. Rxd5 {[%clk 0:00:23.5]} 34... Qc4 {[%clk 0:00:12.2]} 35.
Rd8+ {[%clk 0:00:13.4]} 35... Rxd8 {[%clk 0:00:08.9]} 36. Rxd8+ {[%clk
0:00:14.3]} 36... Kh7 {[%clk 0:00:09]} 37. Qxc4 {[%clk 0:00:13.6]} 37... Rxc4
{[%clk 0:00:09.9]} 38. Rd3 {[%clk 0:00:12.9]} 38... b5 {[%clk 0:00:08.6]} 39.
Kf2 {[%clk 0:00:13.1]} 39... a6 {[%clk 0:00:04.1]} 40. Ke3 {[%clk 0:00:12.9]}
40... Rc2 {[%clk 0:00:03.7]} 41. Kf4 {[%clk 0:00:06.7]} 41... Kg6 {[%clk
0:00:03.2]} 42. Rd6 {[%clk 0:00:06.1]} 42... a5 {[%clk 0:00:03.2]} 43. Ra6
{[%clk 0:00:03.9]} 43... a4 {[%clk 0:00:02.7]} 44. Ra5 {[%clk 0:00:04.1]} 44...
Rb2 {[%clk 0:00:03.1]} 45. g4 {[%clk 0:00:03.1]} 45... Rb3 {[%clk 0:00:03]} 46.
Kg3 {[%clk 0:00:02.1]} 46... Kg5 {[%clk 0:00:02.4]} 47. Kg2 {[%clk 0:00:01.4]}
47... Kf4 {[%clk 0:00:02.6]} 48. Kf2 {[%clk 0:00:01.8]} 48... Rb2+ {[%clk
0:00:02.9]} 49. Kg1 {[%clk 0:00:01.9]} 49... Kxf3 {[%clk 0:00:03.8]} 50. g5
{[%clk 0:00:02]} 50... fxg5 {[%clk 0:00:03.8]} 51. e5 {[%clk 0:00:01.9]} 51...
Kg3 {[%clk 0:00:03]} 52. Kf1 {[%clk 0:00:01.6]} 52... Kf3 {[%clk 0:00:03.6]} 53.
Ke1 {[%clk 0:00:01.8]} 53... g4 {[%clk 0:00:03.7]} 54. e6 {[%clk 0:00:01.6]}
54... g3 {[%clk 0:00:04.3]} 0-1

[Event "*** Titled Tuesday Blitz"]
[Site "Chess.com"]
[Date "2021.03.09"]
[Round "2"]
[White "Nozdrachev_Leonid"]
[Black "TigrVShlyape"]
[Result "0-1"]
[WhiteElo "2529"]
[BlackElo "2829"]
[TimeControl "180+1"]
[EndTime "10:19:55 PST"]
[Termination "TigrVShlyape won by resignation"]

1. e4 {[%clk 0:03:00.9]} 1... e5 {[%clk 0:02:57.1]} 2. Nf3 {[%clk 0:03:00.2]}
2... Nc6 {[%clk 0:02:57.1]} 3. Bb5 {[%clk 0:02:58.1]} 3... a6 {[%clk 0:02:57]}
4. Ba4 {[%clk 0:02:57.5]} 4... Nf6 {[%clk 0:02:57.6]} 5. O-O {[%clk 0:02:57.1]}
5... Be7 {[%clk 0:02:57.9]} 6. Bxc6 {[%clk 0:02:54.2]} 6... dxc6 {[%clk
0:02:57.4]} 7. Re1 {[%clk 0:02:53]} 7... Nd7 {[%clk 0:02:52]} 8. d3 {[%clk
0:02:47.8]} 8... O-O {[%clk 0:02:50.9]} 9. Be3 {[%clk 0:02:47]} 9... c5 {[%clk
0:02:49.2]} 10. a4 {[%clk 0:02:45.5]} 10... b6 {[%clk 0:02:47.2]} 11. Nbd2
{[%clk 0:02:43.7]} 11... Re8 {[%clk 0:02:42.8]} 12. Nc4 {[%clk 0:02:43.3]} 12...
Bf8 {[%clk 0:02:42.4]} 13. Bd2 {[%clk 0:02:40.8]} 13... f6 {[%clk 0:02:35.6]}
14. Nh4 {[%clk 0:02:37]} 14... Nb8 {[%clk 0:02:33.6]} 15. Ne3 {[%clk 0:02:30.5]}
15... Nc6 {[%clk 0:02:32.7]} 16. h3 {[%clk 0:02:08.8]} 16... Be6 {[%clk
0:02:30.8]} 17. Bc3 {[%clk 0:02:05.2]} 17... Qd7 {[%clk 0:02:26.6]} 18. Qf3
{[%clk 0:02:04.1]} 18... b5 {[%clk 0:02:24]} 19. b3 {[%clk 0:01:59.9]} 19... Nd4
{[%clk 0:02:23.4]} 20. Bxd4 {[%clk 0:01:54.9]} 20... cxd4 {[%clk 0:02:22.4]} 21.
Nef5 {[%clk 0:01:45.2]} 21... g6 {[%clk 0:02:16.8]} 22. Ng3 {[%clk 0:01:41.1]}
22... Qf7 {[%clk 0:02:11.6]} 23. Qe2 {[%clk 0:01:34.2]} 23... Bh6 {[%clk
0:02:09.9]} 24. Nf3 {[%clk 0:01:25.6]} 24... Bd7 {[%clk 0:02:02.6]} 25. Nh2
{[%clk 0:01:22.7]} 25... bxa4 {[%clk 0:02:01.2]} 26. bxa4 {[%clk 0:01:22.2]}
26... Rab8 {[%clk 0:02:00.5]} 27. h4 {[%clk 0:01:03.3]} 27... Qe6 {[%clk
0:01:58.1]} 28. h5 {[%clk 0:01:00.7]} 28... a5 {[%clk 0:01:53.5]} 29. Qf3 {[%clk
0:00:45.5]} 29... Rb4 {[%clk 0:01:46.9]} 30. Reb1 {[%clk 0:00:42.5]} 30... Reb8
{[%clk 0:01:45.7]} 31. Rf1 {[%clk 0:00:34.2]} 31... Bg5 {[%clk 0:01:39.5]} 32.
Qe2 {[%clk 0:00:22.1]} 32... Rxa4 {[%clk 0:01:35.4]} 33. Rxa4 {[%clk 0:00:21.2]}
33... Bxa4 {[%clk 0:01:34.3]} 34. hxg6 {[%clk 0:00:20.7]} 34... hxg6 {[%clk
0:01:33.8]} 35. Nf3 {[%clk 0:00:21.2]} 35... Bh6 {[%clk 0:01:15.9]} 36. Ra1
{[%clk 0:00:20.6]} 36... Rb4 {[%clk 0:00:33]} 37. Nh4 {[%clk 0:00:20.2]} 37...
Qf7 {[%clk 0:00:26.3]} 38. Qg4 {[%clk 0:00:18.9]} 38... Kh7 {[%clk 0:00:24.9]}
39. Qc8 {[%clk 0:00:11.3]} 39... Qd7 {[%clk 0:00:17.3]} 40. Qxd7+ {[%clk
0:00:09.4]} 40... Bxd7 {[%clk 0:00:16.4]} 41. Rxa5 {[%clk 0:00:09.9]} 41... Rb1+
{[%clk 0:00:14.9]} 42. Kh2 {[%clk 0:00:09.3]} 42... Rb2 {[%clk 0:00:11.5]} 43.
Rc5 {[%clk 0:00:08.1]} 43... c6 {[%clk 0:00:11.7]} 44. Nf3 {[%clk 0:00:06.8]}
44... Bf8 {[%clk 0:00:11.1]} 45. Rc4 {[%clk 0:00:06.4]} 45... c5 {[%clk
0:00:10.8]} 46. Ne1 {[%clk 0:00:04.5]} 46... Bb5 {[%clk 0:00:10.6]} 47. Ne2
{[%clk 0:00:01.6]} 47... Bxc4 {[%clk 0:00:10.6]} 48. dxc4 {[%clk 0:00:02.5]}
48... Rb4 {[%clk 0:00:10.7]} 49. Nd3 {[%clk 0:00:03.4]} 49... Rxc4 {[%clk
0:00:10.7]} 50. f4 {[%clk 0:00:03.7]} 50... Rxc2 {[%clk 0:00:10.6]} 51. fxe5
{[%clk 0:00:04.6]} 51... Rxe2 {[%clk 0:00:09.4]} 52. exf6 {[%clk 0:00:05.3]}
52... Rxe4 {[%clk 0:00:09]} 53. f7 {[%clk 0:00:05.1]} 53... c4 {[%clk 0:00:09]}
54. Kg3 {[%clk 0:00:05.8]} 54... cxd3 {[%clk 0:00:08.6]} 55. Kf3 {[%clk
0:00:06.7]} 55... Re3+ {[%clk 0:00:09]} 0-1

[Event "*** Titled Tuesday Blitz"]
[Site "Chess.com"]
[Date "2021.03.09"]
[Round "2"]
[White "Grandmaster2B"]
[Black "ChessQueen"]
[Result "1-0"]
[WhiteElo "2535"]
[BlackElo "2771"]
[TimeControl "180+1"]
[EndTime "10:19:56 PST"]
[Termination "Grandmaster2B won on time"]

1. e4 {[%clk 0:03:00.9]} 1... c5 {[%clk 0:02:57.1]} 2. Nf3 {[%clk 0:03:00.9]}
2... Nc6 {[%clk 0:02:55.3]} 3. d4 {[%clk 0:03:01]} 3... cxd4 {[%clk 0:02:55.2]}
4. Nxd4 {[%clk 0:03:01.9]} 4... Nf6 {[%clk 0:02:55.3]} 5. Nc3 {[%clk 0:03:02.1]}
5... d6 {[%clk 0:02:55.7]} 6. Bg5 {[%clk 0:03:02.2]} 6... e6 {[%clk 0:02:55.6]}
7. Qd2 {[%clk 0:03:02.5]} 7... a6 {[%clk 0:02:55.1]} 8. O-O-O {[%clk 0:03:02.7]}
8... h6 {[%clk 0:02:55.5]} 9. Nxc6 {[%clk 0:03:02.1]} 9... bxc6 {[%clk
0:02:55.3]} 10. Bf4 {[%clk 0:03:02.8]} 10... d5 {[%clk 0:02:55.3]} 11. Qe3
{[%clk 0:03:02.7]} 11... Be7 {[%clk 0:02:52.8]} 12. f3 {[%clk 0:03:01.6]} 12...
Qa5 {[%clk 0:02:42.7]} 13. Kb1 {[%clk 0:02:54.3]} 13... O-O {[%clk 0:02:27.5]}
14. g4 {[%clk 0:02:52]} 14... Bc5 {[%clk 0:02:20.8]} 15. Qd3 {[%clk 0:02:37.8]}
15... Bb4 {[%clk 0:02:08.7]} 16. Ne2 {[%clk 0:02:08.5]} 16... Nd7 {[%clk
0:01:45.4]} 17. g5 {[%clk 0:02:01.3]} 17... h5 {[%clk 0:01:44.1]} 18. g6 {[%clk
0:01:58.9]} 18... f6 {[%clk 0:01:24.2]} 19. Nc1 {[%clk 0:01:26.2]} 19... Nc5
{[%clk 0:01:07.5]} 20. Qe2 {[%clk 0:01:20.3]} 20... e5 {[%clk 0:01:04.2]} 21.
Qf2 {[%clk 0:00:52.2]} 21... Ne6 {[%clk 0:00:51.3]} 22. Nb3 {[%clk 0:00:22.6]}
22... Qc7 {[%clk 0:00:43.1]} 23. Bc1 {[%clk 0:00:22.2]} 23... f5 {[%clk
0:00:39.1]} 24. Qh4 {[%clk 0:00:20.9]} 24... Rf6 {[%clk 0:00:39.3]} 25. Qxh5
{[%clk 0:00:14.8]} 25... Nf8 {[%clk 0:00:39.6]} 26. Rg1 {[%clk 0:00:14.7]} 26...
Qd6 {[%clk 0:00:32.6]} 27. exd5 {[%clk 0:00:12]} 27... cxd5 {[%clk 0:00:32.8]}
28. Bc4 {[%clk 0:00:11.3]} 28... Be6 {[%clk 0:00:30]} 29. Bg5 {[%clk 0:00:10.6]}
29... Rxg6 {[%clk 0:00:29]} 30. Be3 {[%clk 0:00:10.9]} 30... Bf7 {[%clk
0:00:24.3]} 31. Rxg6 {[%clk 0:00:09.2]} 31... Qxg6 {[%clk 0:00:23]} 32. Qxg6
{[%clk 0:00:08.7]} 32... Nxg6 {[%clk 0:00:22.8]} 33. Bxd5 {[%clk 0:00:07.7]}
33... Bxd5 {[%clk 0:00:20.5]} 34. Rxd5 {[%clk 0:00:08.6]} 34... Kf7 {[%clk
0:00:15.9]} 35. c3 {[%clk 0:00:08.7]} 35... Be7 {[%clk 0:00:15.5]} 36. Nc5
{[%clk 0:00:06.6]} 36... Rh8 {[%clk 0:00:14.5]} 37. Nd3 {[%clk 0:00:05.5]} 37...
Rxh2 {[%clk 0:00:13.6]} 38. Nxe5+ {[%clk 0:00:05.9]} 38... Ke6 {[%clk 0:00:14]}
39. Nxg6 {[%clk 0:00:05.5]} 39... Kxd5 {[%clk 0:00:12.7]} 40. Nxe7+ {[%clk
0:00:06.2]} 40... Kc4 {[%clk 0:00:11.9]} 41. Nxf5 {[%clk 0:00:05.1]} 41... Kd3
{[%clk 0:00:12.4]} 42. Bc1 {[%clk 0:00:04.8]} 42... g6 {[%clk 0:00:12.7]} 43.
Nd4 {[%clk 0:00:05.2]} 43... Rh1 {[%clk 0:00:10.8]} 44. f4 {[%clk 0:00:05.3]}
44... Rf1 {[%clk 0:00:09.8]} 45. a4 {[%clk 0:00:04.6]} 45... Kc4 {[%clk
0:00:08.1]} 46. Kc2 {[%clk 0:00:04.2]} 46... Rf2+ {[%clk 0:00:07.8]} 47. Bd2
{[%clk 0:00:04.8]} 47... Rh2 {[%clk 0:00:05.6]} 48. b3+ {[%clk 0:00:03.9]} 48...
Kd5 {[%clk 0:00:06.2]} 49. Kd3 {[%clk 0:00:04.8]} 49... Rh3+ {[%clk 0:00:06.7]}
50. Be3 {[%clk 0:00:05.4]} 50... Rg3 {[%clk 0:00:04.6]} 51. c4+ {[%clk
0:00:05.4]} 51... Kd6 {[%clk 0:00:04.4]} 52. f5 {[%clk 0:00:05.9]} 52... g5
{[%clk 0:00:03.7]} 53. Ke4 {[%clk 0:00:05.3]} 53... Rg2 {[%clk 0:00:03.5]} 54.
f6 {[%clk 0:00:04.3]} 54... g4 {[%clk 0:00:01.8]} 55. Kf5 {[%clk 0:00:02.5]} 1-0

[Event "*** Titled Tuesday Blitz"]
[Site "Chess.com"]
[Date "2021.03.09"]
[Round "2"]
[White "Mihnea2017"]
[Black "Make_it_shine060"]
[Result "1-0"]
[WhiteElo "2466"]
[BlackElo "2246"]
[TimeControl "180+1"]
[EndTime "10:19:56 PST"]
[Termination "Mihnea2017 won by resignation"]

1. e4 {[%clk 0:03:00.9]} 1... c5 {[%clk 0:02:59]} 2. Nf3 {[%clk 0:03:00.4]} 2...
d6 {[%clk 0:02:59.3]} 3. d4 {[%clk 0:03:00.5]} 3... cxd4 {[%clk 0:03:00.2]} 4.
Nxd4 {[%clk 0:03:01.1]} 4... Nf6 {[%clk 0:03:00.4]} 5. Nc3 {[%clk 0:03:01.3]}
5... Nc6 {[%clk 0:03:00.5]} 6. Bg5 {[%clk 0:03:00.5]} 6... e6 {[%clk 0:02:59.9]}
7. Qd2 {[%clk 0:02:59.9]} 7... a6 {[%clk 0:02:58.7]} 8. O-O-O {[%clk 0:02:57.1]}
8... Bd7 {[%clk 0:02:58.3]} 9. f3 {[%clk 0:02:53.6]} 9... Be7 {[%clk 0:02:56.6]}
10. Kb1 {[%clk 0:02:47]} 10... Rc8 {[%clk 0:02:43.4]} 11. Be3 {[%clk 0:02:44.6]}
11... b5 {[%clk 0:02:41.4]} 12. Nxc6 {[%clk 0:02:42.5]} 12... Bxc6 {[%clk
0:02:40.6]} 13. Bd3 {[%clk 0:02:41.7]} 13... O-O {[%clk 0:02:39.6]} 14. g4
{[%clk 0:02:40.9]} 14... b4 {[%clk 0:02:36.1]} 15. Ne2 {[%clk 0:02:40.8]} 15...
a5 {[%clk 0:02:35.6]} 16. Ng3 {[%clk 0:02:39]} 16... a4 {[%clk 0:02:33.9]} 17.
g5 {[%clk 0:02:38.1]} 17... Nd7 {[%clk 0:02:33.3]} 18. h4 {[%clk 0:02:35.9]}
18... b3 {[%clk 0:02:32.7]} 19. cxb3 {[%clk 0:02:34]} 19... axb3 {[%clk
0:02:29.5]} 20. a3 {[%clk 0:02:34.4]} 20... Nc5 {[%clk 0:02:25]} 21. h5 {[%clk
0:01:45.5]} 21... Nxd3 {[%clk 0:02:02.5]} 22. Qxd3 {[%clk 0:01:46.4]} 22... Bxg5
{[%clk 0:01:55.4]} 23. Bxg5 {[%clk 0:01:30]} 23... Qxg5 {[%clk 0:01:56.3]} 24.
Rhg1 {[%clk 0:01:30.8]} 24... Bb5 {[%clk 0:01:47]} 25. Qxb3 {[%clk 0:01:26.7]}
25... Bc4 {[%clk 0:01:36.6]} 26. Qb4 {[%clk 0:01:19.8]} 26... Qe5 {[%clk
0:01:26.5]} 27. Qxd6 {[%clk 0:01:15.8]} 27... Qa5 {[%clk 0:01:24.6]} 28. Nf5
{[%clk 0:00:46.8]} 28... g6 {[%clk 0:00:52.7]} 29. Ne7+ {[%clk 0:00:43.3]} 29...
Kh8 {[%clk 0:00:50.4]} 30. Nxc8 {[%clk 0:00:40.4]} 30... Rxc8 {[%clk 0:00:50]}
31. hxg6 {[%clk 0:00:40.7]} 31... fxg6 {[%clk 0:00:46.5]} 32. Qd7 {[%clk
0:00:31.9]} 32... Qc5 {[%clk 0:00:26.5]} 33. Rh1 {[%clk 0:00:27.3]} 33... h5
{[%clk 0:00:24.6]} 34. Qd4+ {[%clk 0:00:22.6]} 34... Qxd4 {[%clk 0:00:24.5]} 35.
Rxd4 {[%clk 0:00:23.5]} 35... e5 {[%clk 0:00:23.3]} 36. Rd7 {[%clk 0:00:22.6]}
36... Be6 {[%clk 0:00:20.2]} 37. Re7 {[%clk 0:00:22.3]} 37... Rc6 {[%clk
0:00:19.9]} 38. Rc1 {[%clk 0:00:21.2]} 38... Ba2+ {[%clk 0:00:19.4]} 39. Kxa2
{[%clk 0:00:21.3]} 39... Rxc1 {[%clk 0:00:20.3]} 40. Rxe5 {[%clk 0:00:19.2]}
40... Rf1 {[%clk 0:00:20]} 41. a4 {[%clk 0:00:18.3]} 41... Rxf3 {[%clk
0:00:19.2]} 42. a5 {[%clk 0:00:18.5]} 42... Rf6 {[%clk 0:00:19.3]} 43. Rb5
{[%clk 0:00:15]} 43... h4 {[%clk 0:00:18.8]} 44. Rb6 {[%clk 0:00:14.4]} 44...
Rf7 {[%clk 0:00:15.3]} 45. Rxg6 {[%clk 0:00:14.3]} 45... Kh7 {[%clk 0:00:13.8]}
46. Rg4 {[%clk 0:00:12.8]} 46... Ra7 {[%clk 0:00:13.5]} 47. Rxh4+ {[%clk
0:00:12.5]} 47... Kg6 {[%clk 0:00:14.4]} 48. b4 {[%clk 0:00:13.3]} 48... Kf6
{[%clk 0:00:14.1]} 49. Kb3 {[%clk 0:00:13.3]} 49... Ke5 {[%clk 0:00:14.3]} 50.
Rh6 {[%clk 0:00:12.9]} 50... Kxe4 {[%clk 0:00:13.4]} 51. Rd6 {[%clk 0:00:12.8]}
51... Ke5 {[%clk 0:00:13.1]} 52. Rd1 {[%clk 0:00:13]} 52... Ra6 {[%clk
0:00:11.5]} 53. Ka4 {[%clk 0:00:13.2]} 53... Ke6 {[%clk 0:00:10.9]} 54. b5
{[%clk 0:00:13.3]} 54... Ra8 {[%clk 0:00:11.4]} 55. a6 {[%clk 0:00:13.7]} 55...
Ke7 {[%clk 0:00:10.7]} 56. Ka5 {[%clk 0:00:14.1]} 56... Ke8 {[%clk 0:00:11.1]}
57. b6 {[%clk 0:00:14.4]} 57... Ke7 {[%clk 0:00:12]} 58. b7 {[%clk 0:00:14.5]}
1-0